bitfinex/quotes_BTCUSD_20260103
["timestamp","ask_amount","ask_price","bid_price","bid_amount"]
[1767424084191,0.01112285,89905.0,89900.0,0.01112347]
[1767424084532,0.01112285,89905.0,89899.0,0.05898284]
[1767424084891,0.01112272,89906.0,89901.0,0.01112334]
[1767424085090,0.02224235,89909.0,89902.0,0.01112322]
[1767424085292,0.01112248,89908.0,89903.0,0.01102311]
[1767424085453,0.0111226,89907.0,89902.0,0.01112322]
[1767424085786,0.0111226,89907.0,89903.0,0.01112309]
[1767424086197,0.01112248,89908.0,89903.0,0.01112309]
[1767424086488,0.0111226,89907.0,89902.0,0.05898247]
[1767424086655,0.0111226,89907.0,89903.0,0.05898234]
[1767424086856,0.01112248,89908.0,89903.0,0.05898234]
[1767424087076,0.0111226,89907.0,89903.0,0.04785925]
[1767424087390,0.0111226,89907.0,89903.0,0.05898234]
[1767424087623,0.0111226,89907.0,89903.0,0.04785925]
[1767424087832,0.01112248,89908.0,89903.0,0.05898234]
[1767424088402,0.01112235,89909.0,89904.0,0.01112297]
[1767424088586,0.01112248,89908.0,89903.0,0.04785925]
[1767424088749,0.01112248,89908.0,89903.0,0.05898234]
[1767424088961,0.0111226,89907.0,89903.0,0.05898234]
[1767424089797,0.01112248,89908.0,89903.0,0.05898234]
[1767424090004,0.0111226,89907.0,89903.0,0.04785925]
[1767424090641,0.01112,89912.0,89908.0,0.04785925]
[1767424090850,0.0111221,89911.0,89908.0,0.04686025]
[1767424091074,0.01112223,89910.0,89905.0,0.0589821]
[1767424091440,0.0111221,89911.0,89906.0,0.01112272]
[1767424092192,0.01112149,89916.0,89910.0,0.01112223]
[1767424092562,0.01112149,89916.0,89909.0,0.01112235]
[1767424092744,0.01112173,89914.0,89909.0,0.01112235]
[1767424092963,0.01112161,89915.0,89910.0,0.01112223]
[1767424093308,0.01112149,89916.0,89911.0,0.0111221]
[1767424093502,0.01112136,89917.0,89912.0,0.01112198]
[1767424093930,0.01112124,89918.0,89911.0,0.06673213]
[1767424094110,0.01112136,89917.0,89912.0,0.01112198]
[1767424094691,0.01112124,89918.0,89913.0,0.01112186]
[1767424095186,0.01137791,89921.0,89913.0,0.01112186]
[1767424095187,0.00025791,89921.0,89918.0,0.01212024]
[1767424095464,0.00021664,89921.0,89918.0,0.01112124]
[1767424096166,0.00021664,89921.0,89918.0,0.06672691]
[1767424096167,0.00017288,89921.0,89918.0,0.06672691]
[1767424096662,0.00012922,89921.0,89918.0,0.06672691]
[1767424096865,0.00012922,89921.0,89920.0,0.05560498]
[1767424097029,2.2e-07,89921.0,89920.0,0.05560498]
[1767424097724,2.2e-07,89921.0,89918.0,0.06672691]
[1767424097950,2.2e-07,89921.0,89918.0,0.01112124]
[1767424099070,2.2e-07,89921.0,89919.0,0.0556056]
[1767424099436,0.01112,89925.0,89922.0,0.01102076]
[1767424099638,0.01112037,89925.0,89920.0,0.01112099]
[1767424099952,0.02224025,89926.0,89921.0,0.01112087]
[1767424100156,0.01112037,89925.0,89920.0,0.01112099]
[1767424101358,0.02224025,89926.0,89921.0,0.01112087]
[1767424101619,0.01112037,89925.0,89920.0,0.01112099]
[1767424101993,0.02224025,89926.0,89921.0,0.01112087]
[1767424102392,0.02219766,89926.0,89921.0,0.01112087]
[1767424102910,0.01112037,89925.0,89920.0,0.01112099]
[1767424103056,0.02219766,89926.0,89921.0,0.01112087]
[1767424103251,0.01112037,89925.0,89920.0,0.01112099]
[1767424103465,0.01107766,89926.0,89921.0,0.01112087]
[1767424103907,0.01112037,89925.0,89919.0,0.01112112]
[1767424104322,0.01112037,89925.0,89920.0,0.01112099]
[1767424104914,0.01107766,89926.0,89920.0,0.01112099]
[1767424105143,0.02244013,89927.0,89921.0,0.01112087]
[1767424105300,0.01112025,89926.0,89920.0,0.01112099]
[1767424105531,0.01112025,89926.0,89921.0,0.01112087]
[1767424105708,0.02244013,89927.0,89922.0,0.01112074]
[1767424105913,0.0002,89927.0,89923.0,0.04785925]
[1767424106176,0.02223963,89931.0,89924.0,0.04785925]
[1767424106347,0.01111975,89930.0,89925.0,0.05897962]
[1767424106957,0.01111975,89930.0,89925.0,0.04785925]
[1767424107162,0.01671946,89929.0,89925.0,0.04785925]
[1767424107479,0.01112013,89927.0,89923.0,0.04785925]
[1767424108212,0.01112,89928.0,89923.0,0.05897987]
[1767424108946,0.01112013,89927.0,89922.0,0.01112074]
[1767424109603,0.01107822,89929.0,89927.0,0.00067]
[1767424109804,0.06667811,89929.0,89922.0,0.0610436]
[1767424110011,0.04786842,89926.0,89922.0,0.01112074]
[1767424110221,0.01107849,89927.0,89922.0,0.0610436]
[1767424110830,0.04786842,89927.0,89918.0,0.07784717]
[1767424111030,0.01112013,89927.0,89919.0,0.04992286]
[1767424111207,0.01112,89928.0,89927.0,0.04992286]
[1767424111413,0.01112,89928.0,89927.0,0.04959386]
[1767424111837,0.01112013,89927.0,89923.0,0.04992286]
[1767424112041,0.01112,89928.0,89923.0,0.04992286]
[1767424112243,0.01112013,89927.0,89923.0,0.04992286]
[1767424112438,0.01112,89928.0,89927.0,0.04992286]
[1767424112641,0.01107834,89928.0,89923.0,0.01112062]
[1767424112996,0.01107834,89928.0,89924.0,0.04992286]
[1767424113552,0.01112013,89927.0,89923.0,0.01112062]
[1767424113753,0.01107834,89928.0,89922.0,0.01112074]
[1767424113989,0.01107834,89928.0,89923.0,0.01112062]
[1767424114210,0.01112013,89927.0,89923.0,0.04992286]
[1767424114749,0.01112037,89925.0,89918.0,0.01112]
[1767424114984,0.01672501,89922.0,89918.0,0.01112]
[1767424115208,0.01112087,89921.0,89918.0,0.01112]
[1767424116260,0.01107779,89921.0,89918.0,0.01112]
[1767424117027,0.01103463,89921.0,89918.0,0.01112]
[1767424117244,0.0111205,89924.0,89921.0,0.000999]
[1767424117444,0.0111205,89924.0,89918.0,0.11664885]
[1767424117619,0.0111205,89924.0,89918.0,0.01112]
[1767424117823,0.01112074,89923.0,89918.0,0.01112]
[1767424118033,0.01012174,89923.0,89919.0,0.01112112]
[1767424118235,0.01012174,89923.0,89920.0,0.01112099]
[1767424120635,0.01012174,89923.0,89918.0,0.02224124]
[1767424120836,0.01012174,89923.0,89919.0,0.01112112]
[1767424121567,0.01012174,89923.0,89919.0,0.06104398]
[1767424121769,0.01012174,89923.0,89920.0,0.01112099]
[1767424122425,0.01012174,89923.0,89919.0,0.01112112]
[1767424122634,0.01012174,89923.0,89920.0,0.01112099]
[1767424123617,0.05799016,89923.0,89919.0,0.01112112]
[1767424123826,0.05559857,89931.0,89922.0,0.01112074]
[1767424123977,0.01111988,89929.0,89925.0,0.06104323]
[1767424124341,0.01112,89928.0,89925.0,0.04992286]
[1767424124911,0.01112,89928.0,89923.0,0.06104348]
[1767424125329,0.01112,89928.0,89924.0,0.0111205]
[1767424125524,0.01112013,89927.0,89923.0,0.04992286]
[1767424125743,0.01112,89928.0,89923.0,0.06104348]
[1767424125898,0.01112013,89927.0,89922.0,0.01112074]
[1767424126100,0.01112,89928.0,89923.0,0.01112062]
[1767424126526,0.01111988,89929.0,89924.0,0.0111205]
[1767424127490,0.01107845,89929.0,89924.0,0.0111205]
[1767424127691,0.01112,89928.0,89923.0,0.01112062]
[1767424128271,0.01107609,89928.0,89923.0,0.01112062]
[1767424128479,0.01107609,89928.0,89924.0,0.0111205]
[1767424128657,0.01111975,89930.0,89924.0,0.0111205]
[1767424128862,0.01111975,89930.0,89925.0,0.01112037]
[1767424129076,0.01107804,89930.0,89925.0,0.01112037]
[1767424129259,0.01111988,89929.0,89924.0,0.0111205]
[1767424129485,0.01111975,89930.0,89923.0,0.06104348]
[1767424130160,0.01111975,89930.0,89925.0,0.01112037]
[1767424131165,0.05559864,89931.0,89925.0,0.01112037]
[1767424131166,0.01111963,89931.0,89925.0,0.06104323]
[1767424131370,0.01111988,89929.0,89925.0,0.04992286]
[1767424131778,0.01111988,89929.0,89924.0,0.0111205]
[1767424132023,0.01111988,89929.0,89925.0,0.01112037]
[1767424132223,0.01111975,89930.0,89925.0,0.01112037]
[1767424132434,0.01111988,89929.0,89924.0,0.0111205]
[1767424132569,0.01111975,89930.0,89925.0,0.01112037]
[1767424134261,0.01111963,89931.0,89926.0,0.01112025]
[1767424134436,0.00823646,89931.0,89926.0,0.01112025]
[1767424135028,0.01111975,89930.0,89925.0,0.01112037]
[1767424135245,0.00823646,89931.0,89926.0,0.01112025]
[1767424135677,0.01111951,89932.0,89926.0,0.01112025]
[1767424136321,0.01111951,89932.0,89927.0,0.01112013]
[1767424136533,0.01111963,89931.0,89926.0,0.01112025]
[1767424137347,0.01111988,89929.0,89924.0,0.0111205]
[1767424138361,0.01111988,89929.0,89921.0,0.06104373]
[1767424138586,0.01112013,89927.0,89922.0,0.01112074]
[1767424138792,0.0111205,89924.0,89918.0,1e-08]
[1767424138951,0.05898855,89927.0,89894.0,0.04992286]
[1767424138952,0.01112161,89915.0,89913.0,0.01112]
[1767424139158,0.01112124,89918.0,89910.0,0.01112]
[1767424139159,0.01112186,89913.0,89910.0,0.01112]
[1767424139361,0.05560869,89914.0,89910.0,0.01112]
[1767424139560,0.03336571,89914.0,89910.0,0.01112]
[1767424139809,0.01112186,89913.0,89910.0,0.01112]
[1767424139981,0.03336571,89914.0,89910.0,0.01112]
[1767424139982,0.01112173,89914.0,89910.0,0.01112]
[1767424140193,0.01112186,89913.0,89910.0,0.01112]
[1767424140427,0.01112173,89914.0,89910.0,0.01112]
[1767424140603,0.06672916,89916.0,89910.0,0.01112]
[1767424140801,0.01112161,89915.0,89910.0,0.02224223]
[1767424141161,0.01112186,89913.0,89910.0,0.01112]
[1767424141290,0.01112173,89914.0,89910.0,0.01112]
[1767424141485,0.01112161,89915.0,89911.0,0.0111221]
[1767424141693,0.01112149,89916.0,89911.0,0.0111221]
[1767424142366,0.01112161,89915.0,89910.0,0.02224223]
[1767424143066,0.01112149,89916.0,89911.0,0.0111221]
[1767424143264,0.01112173,89914.0,89910.0,0.01112]
[1767424143474,0.01112161,89915.0,89910.0,0.02224223]
[1767424144036,0.01112161,89915.0,89911.0,0.0111221]
[1767424144351,0.01112149,89916.0,89911.0,0.0111221]
[1767424144549,0.01112161,89915.0,89910.0,0.02224223]
[1767424144750,0.01112161,89915.0,89910.0,0.01112]
[1767424144975,0.01112173,89914.0,89910.0,0.01112]
[1767424145547,0.01112149,89916.0,89914.0,0.000999]
[1767424145749,0.01112149,89916.0,89911.0,0.0111221]
[1767424146064,0.01112136,89917.0,89912.0,0.01112198]
[1767424146865,0.01112124,89918.0,89913.0,0.01112186]
[1767424147077,0.05560621,89918.0,89912.0,0.01112198]
[1767424147256,0.01112124,89918.0,89912.0,0.01112198]
[1767424147672,0.01112136,89917.0,89913.0,0.01112186]
[1767424147871,0.01112124,89918.0,89913.0,0.01112186]
[1767424148287,0.01112136,89917.0,89912.0,0.01112198]
[1767424148548,0.01112149,89916.0,89911.0,0.05615545]
[1767424149229,0.01112149,89916.0,89912.0,0.01112198]
[1767424149631,0.01112161,89915.0,89911.0,0.05615545]
[1767424149832,0.01112173,89914.0,89910.0,0.01112]
[1767424150069,0.01112161,89915.0,89910.0,0.02224223]
[1767424150369,0.01112173,89914.0,89910.0,0.01112]
[1767424150568,0.01112161,89915.0,89910.0,0.02224223]
[1767424150983,0.06672678,89919.0,89910.0,0.07785288]
[1767424151145,0.06682694,89919.0,89910.0,0.07785288]
[1767424151580,0.05560666,89918.0,89910.0,0.07785288]
[1767424151818,0.05560666,89918.0,89911.0,0.0111221]
[1767424151819,0.01112149,89916.0,89911.0,0.0111221]
[1767424152590,0.01112149,89916.0,89912.0,0.01112198]
[1767424153168,0.00010016,89919.0,89916.0,0.000999]
[1767424153369,0.01132099,89920.0,89914.0,0.01112173]
[1767424153573,0.01132099,89920.0,89915.0,0.01112161]
[1767424154596,0.01112,89928.0,89922.0,0.01112074]
[1767424154976,0.05559941,89930.0,89922.0,0.01112074]
[1767424154977,0.01111988,89929.0,89922.0,0.06672399]
[1767424155220,0.01112,89928.0,89923.0,0.01112062]
[1767424155632,0.01111988,89929.0,89924.0,0.0111205]
[1767424156214,0.01111988,89929.0,89925.0,0.01112037]
[1767424156761,0.01111963,89931.0,89926.0,0.01112025]
[1767424156951,0.01111975,89930.0,89926.0,0.01112025]
[1767424157151,0.01111975,89930.0,89925.0,0.01112037]
[1767424157499,0.01111963,89931.0,89926.0,0.01112025]
[1767424157701,0.01111951,89932.0,89927.0,0.01112013]
[1767424158237,0.01111975,89930.0,89925.0,0.01112037]
[1767424159287,0.01111975,89930.0,89924.0,0.0111205]
[1767424159477,0.01111951,89932.0,89927.0,0.01112013]
[1767424159860,0.01107573,89932.0,89927.0,0.01112013]
[1767424160057,0.01111938,89933.0,89928.0,0.01112]
[1767424160242,0.01111951,89932.0,89927.0,0.01112013]
[1767424160442,0.01111938,89933.0,89928.0,0.01112]
[1767424160664,0.01111951,89932.0,89927.0,0.01112013]
[1767424161263,0.01111938,89933.0,89928.0,0.01112]
[1767424161496,0.01111938,89933.0,89927.0,0.01112013]
[1767424161497,0.01111963,89931.0,89926.0,0.01112025]
[1767424161807,0.01111963,89931.0,89927.0,0.01112013]
[1767424162096,0.0110781,89932.0,89927.0,0.01112013]
[1767424162502,0.01111963,89931.0,89926.0,0.01112025]
[1767424163097,0.01103672,89932.0,89927.0,0.01112013]
[1767424167572,0.0667149,89935.0,89929.0,0.01111988]
[1767424167857,0.01111938,89933.0,89928.0,0.01112]
[1767424168205,0.01111951,89932.0,89926.0,0.01112025]
[1767424168556,0.01111951,89932.0,89927.0,0.01112013]
[1767424168716,0.01111963,89931.0,89926.0,0.01112025]
[1767424169673,0.01111975,89930.0,89926.0,0.01112025]
[1767424169858,0.01111963,89931.0,89926.0,0.01112025]
[1767424170706,0.01111975,89930.0,89925.0,0.01112037]
[1767424171473,0.01111963,89931.0,89926.0,0.01112025]
[1767424171909,0.01111951,89932.0,89927.0,0.01112013]
[1767424172044,0.01107684,89933.0,89928.0,0.01112]
[1767424172449,0.01111951,89932.0,89927.0,0.01112013]
[1767424176722,0.01107684,89933.0,89928.0,0.01112]
[1767424178053,0.01107684,89933.0,89929.0,0.01111988]
[1767424178894,0.01107684,89933.0,89928.0,0.01112]
[1767424179310,0.01111926,89934.0,89929.0,0.01111988]
[1767424180339,0.01111938,89933.0,89927.0,0.01112013]
[1767424180481,0.01111926,89934.0,89933.0,0.000999]
[1767424180934,0.01111951,89932.0,89928.0,0.01112]
[1767424181139,0.01111926,89934.0,89928.0,0.01112]
[1767424182051,0.01111938,89933.0,89928.0,0.01112]
[1767424183622,0.01111951,89932.0,89927.0,0.01112013]
[1767424183847,0.01111963,89931.0,89926.0,0.01112025]
[1767424184246,0.01111988,89929.0,89924.0,0.0111205]
[1767424184445,0.01111963,89931.0,89925.0,0.01112037]
[1767424184675,0.01111975,89930.0,89925.0,0.01112037]
[1767424185837,0.01111988,89929.0,89924.0,0.0111205]
[1767424186045,0.01111975,89930.0,89925.0,0.01112037]
[1767424186983,0.01111975,89930.0,89926.0,0.01112025]
[1767424187195,0.01111963,89931.0,89926.0,0.01112025]
[1767424189177,0.01111963,89931.0,89927.0,0.01112013]
[1767424189720,0.01111963,89931.0,89926.0,0.01112025]
[1767424190220,0.01111975,89930.0,89925.0,0.01112037]
[1767424190606,0.01111975,89930.0,89926.0,0.01112025]
[1767424191552,0.01111963,89931.0,89926.0,0.01112025]
[1767424192047,0.01111963,89931.0,89927.0,0.01112013]
[1767424192246,0.0667175,89932.0,89927.0,0.01112013]
[1767424192817,0.01111951,89932.0,89927.0,0.01112013]
[1767424195284,0.01111963,89931.0,89927.0,0.01112013]
[1767424197192,0.0582063,89931.0,89927.0,0.01112013]
[1767424197320,0.04708667,89931.0,89926.0,0.06672107]
[1767424197520,0.04708667,89931.0,89928.0,0.01112]
[1767424197776,0.04608767,89931.0,89926.0,0.01112025]
[1767424197974,0.04608767,89931.0,89927.0,0.01112013]
[1767424198949,0.01111938,89933.0,89928.0,0.01112]
[1767424201432,0.01111951,89932.0,89927.0,0.01112013]
[1767424202168,0.000999,89927.0,89922.0,0.01112074]
[1767424202598,0.000999,89927.0,89924.0,0.0111205]
[1767424202821,0.01111988,89929.0,89924.0,0.0111205]
[1767424202947,0.06672028,89928.0,89922.0,0.01112074]
[1767424203264,0.01112013,89927.0,89923.0,0.01112062]
[1767424203682,0.01112,89928.0,89923.0,0.01112062]
[1767424203860,0.01112013,89927.0,89922.0,0.01112074]
[1767424204045,0.01112,89928.0,89923.0,0.01112062]
[1767424205217,0.01112013,89927.0,89922.0,0.01112074]
[1767424205366,0.01111988,89929.0,89924.0,0.0111205]
[1767424206009,0.01112,89928.0,89923.0,0.01112062]
[1767424207371,0.01111975,89930.0,89923.0,0.01112062]
[1767424207576,0.01111988,89929.0,89923.0,0.01112062]
[1767424208735,0.01111975,89930.0,89923.0,0.06672322]
[1767424208912,0.01111951,89932.0,89928.0,0.01112]
[1767424209117,0.01111951,89932.0,89924.0,0.06672255]
[1767424210236,0.01111963,89931.0,89924.0,0.06672255]
[1767424210647,0.01111938,89933.0,89926.0,0.01112025]
[1767424210784,0.01111963,89931.0,89927.0,0.01112013]
[1767424210991,0.01111963,89931.0,89926.0,0.01112025]
[1767424211393,0.01111839,89941.0,89927.0,0.04797897]
[1767424211594,0.01126844,89939.0,89933.0,0.01111938]
[1767424211838,0.000999,89933.0,89928.0,0.01112]
[1767424212258,0.01111938,89933.0,89926.0,0.01112025]
[1767424212463,0.01111938,89933.0,89928.0,0.01112]
[1767424212676,0.01111951,89932.0,89926.0,0.06672147]
[1767424213023,0.01111938,89933.0,89928.0,0.01112]
[1767424213653,0.01111926,89934.0,89929.0,0.01111988]
[1767424214467,0.01111926,89934.0,89928.0,0.01112]
[1767424214667,0.01111951,89932.0,89926.0,0.01112025]
[1767424214861,0.01111963,89931.0,89927.0,0.01112013]
[1767424215265,0.01111951,89932.0,89927.0,0.01112013]
[1767424215632,0.05559505,89937.0,89929.0,0.01111988]
[1767424215836,0.05559505,89937.0,89927.0,0.06672032]
[1767424215837,0.01111938,89933.0,89928.0,0.01112]
[1767424216640,0.05559505,89937.0,89930.0,0.01111975]
[1767424216859,0.01111914,89935.0,89929.0,0.01111988]
[1767424217352,0.01111938,89933.0,89928.0,0.01112]
[1767424217578,0.01111926,89934.0,89929.0,0.01111988]
[1767424218003,0.01111938,89933.0,89928.0,0.01112]
[1767424218220,0.01111901,89936.0,89929.0,0.05559941]
[1767424218653,0.01111914,89935.0,89929.0,0.01111988]
[1767424219057,0.01111926,89934.0,89930.0,0.01111975]
[1767424219498,0.01111926,89934.0,89929.0,0.01111988]
[1767424220343,0.01111914,89935.0,89929.0,0.01111988]
[1767424220551,0.01111926,89934.0,89929.0,0.01111988]
[1767424220762,0.01111914,89935.0,89930.0,0.01111975]
[1767424220967,0.01111926,89934.0,89930.0,0.01111975]
[1767424221178,0.01111926,89934.0,89929.0,0.01111988]
[1767424221392,0.01111914,89935.0,89930.0,0.01111975]
[1767424221597,0.01111926,89934.0,89929.0,0.01111988]
[1767424222010,0.01111926,89934.0,89930.0,0.01111975]
[1767424222394,0.01111914,89935.0,89930.0,0.01111975]
[1767424222891,0.01111914,89935.0,89929.0,0.01111988]
[1767424223057,0.01111926,89934.0,89929.0,0.01111988]
[1767424223276,0.01111914,89935.0,89930.0,0.01111975]
[1767424223452,0.01111914,89935.0,89931.0,0.01111963]
[1767424223664,0.01111914,89935.0,89930.0,0.01111975]
[1767424224247,0.01111901,89936.0,89931.0,0.01111963]
[1767424224687,0.01111914,89935.0,89930.0,0.01111975]
[1767424224871,0.01111901,89936.0,89930.0,0.01111975]
[1767424225074,0.04645581,89934.0,89930.0,0.01111975]
[1767424225266,0.04645581,89934.0,89929.0,0.01111988]
[1767424225267,0.04645581,89934.0,89929.0,0.06671872]
[1767424225500,0.04645581,89934.0,89930.0,0.01111975]
[1767424225883,0.04645581,89934.0,89931.0,0.01111963]
[1767424227589,0.04645581,89934.0,89930.0,0.01111975]
[1767424227788,0.04645581,89934.0,89931.0,0.01111963]
[1767424228122,0.04645581,89934.0,89931.0,0.06671777]
[1767424228531,0.05757482,89936.0,89931.0,0.01111963]
[1767424228892,0.01111914,89935.0,89930.0,0.01111975]
[1767424229092,0.000999,89930.0,89928.0,0.01112]
[1767424229514,0.01111938,89933.0,89929.0,0.01111988]
[1767424229713,0.01111914,89935.0,89929.0,0.01111988]
[1767424229915,0.01111914,89935.0,89930.0,0.01111975]
[1767424230123,0.01107748,89935.0,89930.0,0.01111975]
[1767424230320,0.0464133,89936.0,89930.0,0.01111975]
[1767424230520,0.01111914,89935.0,89929.0,0.06671911]
[1767424230855,0.01111914,89935.0,89929.0,0.01111988]
[1767424230991,0.01111914,89935.0,89930.0,0.01111975]
[1767424231193,0.01111926,89934.0,89930.0,0.01111975]
[1767424231386,0.000999,89930.0,89928.0,0.01112]
[1767424231593,0.01111926,89934.0,89928.0,0.01112]
[1767424232012,0.04537884,89933.0,89927.0,0.02284179]
[1767424232214,5.608e-05,89933.0,89930.0,0.01111975]
[1767424233031,5.608e-05,89933.0,89930.0,0.06045711]
[1767424233331,5.608e-05,89933.0,89930.0,0.04933736]
[1767424233539,5.608e-05,89933.0,89930.0,0.04833836]
[1767424233969,0.01117546,89933.0,89930.0,0.04833836]
[1767424234496,5.608e-05,89933.0,89930.0,0.05945811]
[1767424235675,0.01117546,89933.0,89930.0,0.04833836]
[1767424235878,5.608e-05,89933.0,89930.0,0.05945811]
[1767424237370,8e-08,89933.0,89930.0,0.05945811]
[1767424237544,8e-08,89933.0,89929.0,0.01111988]
[1767424237748,8e-08,89933.0,89928.0,0.01112]
[1767424237950,8e-08,89933.0,89929.0,0.01111988]
[1767424238661,0.01111946,89933.0,89928.0,0.06045736]
[1767424238865,8e-08,89933.0,89929.0,0.01111988]
[1767424240170,8e-08,89933.0,89930.0,0.01111975]
[1767424240311,8e-08,89933.0,89930.0,0.06671852]
[1767424240519,0.01111946,89933.0,89929.0,0.01111988]
[1767424240720,5.6e-05,89929.0,89928.0,0.01112]
[1767424240920,5.6e-05,89929.0,89928.0,0.06045736]
[1767424241218,8e-08,89933.0,89930.0,0.01111975]
[1767424241437,8e-08,89933.0,89931.0,0.05559818]
[1767424241689,8e-08,89933.0,89931.0,0.03839376]
[1767424242255,8e-08,89933.0,89931.0,0.05559818]
[1767424243198,8e-08,89933.0,89932.0,0.04933736]
[1767424244851,8e-08,89933.0,89931.0,0.05559818]
[1767424245312,8e-08,89933.0,89932.0,0.04933736]
[1767424253973,8e-08,89933.0,89928.0,0.01112]
[1767424254173,8e-08,89933.0,89930.0,0.04933736]
[1767424254578,8e-08,89933.0,89930.0,0.06045711]
[1767424255118,8e-08,89933.0,89930.0,0.01111975]
[1767424255295,8e-08,89933.0,89931.0,0.04933736]
[1767424256113,8e-08,89933.0,89920.0,0.04933736]
[1767424256114,0.01112062,89923.0,89920.0,0.04933736]
[1767424256314,0.01112025,89926.0,89923.0,0.000999]
[1767424256574,0.01112037,89925.0,89922.0,0.04933736]
[1767424256713,0.01112037,89925.0,89920.0,0.01112099]
[1767424256910,0.01112025,89926.0,89921.0,0.01112087]
[1767424257332,0.01112025,89926.0,89922.0,0.0604581]
[1767424257567,0.01112013,89927.0,89923.0,0.04933736]
[1767424257775,0.01112013,89927.0,89922.0,0.01112074]
[1767424257776,0.01112025,89926.0,89922.0,0.01112074]
[1767424257976,0.01112037,89925.0,89922.0,0.04933736]
[1767424258299,0.01112025,89926.0,89922.0,0.04933736]
[1767424258794,0.01112025,89926.0,89921.0,0.01112087]
[1767424259186,0.01112025,89926.0,89922.0,0.04933736]
[1767424259592,0.01112025,89926.0,89921.0,0.01112087]
[1767424259890,0.01112013,89927.0,89922.0,0.05665313]
[1767424260405,0.01112013,89927.0,89922.0,0.04553239]
[1767424260594,0.01112013,89927.0,89921.0,0.01112087]
[1767424260891,0.01112013,89927.0,89922.0,0.01112074]
[1767424261093,0.01112037,89925.0,89920.0,0.05665338]
[1767424261509,0.01112124,89918.0,89912.0,0.04553239]
[1767424261642,0.01112173,89914.0,89905.0,0.10113524]
[1767424261844,0.01112198,89912.0,89909.0,0.04553239]
[1767424262095,0.06673244,89912.0,89909.0,0.04553239]
[1767424262302,0.01112198,89912.0,89909.0,0.04553239]
[1767424262648,0.01112198,89912.0,89906.0,0.02224272]
[1767424262649,0.01112235,89909.0,89906.0,0.01112]
[1767424263669,0.01112235,89909.0,89906.0,0.05665239]
[1767424264298,0.0667342,89909.0,89906.0,0.05665239]
[1767424264656,0.0667342,89909.0,89906.0,0.01112]
[1767424265098,0.01112235,89909.0,89906.0,0.01112]
[1767424265500,0.01112248,89908.0,89903.0,0.01112309]
[1767424265707,0.01112198,89912.0,89908.0,0.000999]
[1767424265901,0.0111221,89911.0,89908.0,0.000999]
[1767424266264,0.0111221,89911.0,89906.0,0.01112272]
[1767424266468,0.01112198,89912.0,89906.0,0.01112272]
[1767424267317,0.03440967,89910.0,89904.0,0.03232748]
[1767424267489,0.0111221,89911.0,89905.0,0.04553239]
[1767424267705,0.01112235,89909.0,89905.0,0.04553239]
[1767424267909,0.0111226,89907.0,89903.0,0.04553239]
[1767424268430,0.01112248,89908.0,89903.0,0.05665548]
[1767424269639,0.0111226,89907.0,89903.0,0.04553239]
[1767424269849,0.01112248,89908.0,89903.0,0.04553239]
[1767424270861,0.0111226,89907.0,89903.0,0.04553239]
[1767424271429,0.01112272,89906.0,89903.0,0.04553239]
[1767424272212,0.06673697,89906.0,89903.0,0.04553239]
[1767424272409,0.06673697,89906.0,89903.0,0.04548859]
[1767424272630,4.002e-05,89906.0,89903.0,0.04548859]
[1767424273068,4.002e-05,89906.0,89903.0,0.05661168]
[1767424273246,0.01090524,89909.0,89906.0,4e-05]
[1767424273430,0.01112248,89908.0,89906.0,9.6e-05]
[1767424274016,0.01112248,89908.0,89906.0,5.6e-05]
[1767424275494,0.05561302,89907.0,89906.0,5.6e-05]
[1767424275635,0.01112248,89908.0,89907.0,0.000999]
[1767424276195,0.0667354,89908.0,89906.0,5.6e-05]
[1767424281350,0.0667353,89908.0,89906.0,5.6e-05]
[1767424282136,0.0657363,89908.0,89906.0,5.6e-05]
[1767424282767,0.06673685,89906.0,89903.0,0.04548859]
[1767424283018,0.06673685,89906.0,89903.0,0.04558875]
[1767424283373,0.05561461,89905.0,89903.0,0.00010016]
[1767424283572,0.05561611,89902.0,89901.0,0.04553239]
[1767424283774,0.05561611,89902.0,89901.0,0.04468939]
[1767424284414,0.05546011,89902.0,89901.0,0.04553239]
[1767424286285,0.01112309,89903.0,89901.0,0.04553239]
[1767424286484,0.01112297,89904.0,89903.0,0.000843]
[1767424286881,0.01112223,89910.0,89903.0,0.05665548]
[1767424287088,0.0111226,89907.0,89903.0,0.04553239]
[1767424287329,0.01112235,89909.0,89903.0,0.05665548]
[1767424288082,0.01027935,89909.0,89905.0,0.04553239]
[1767424289109,0.01112235,89909.0,89905.0,0.04553239]
[1767424289550,0.01112248,89908.0,89905.0,0.04553239]
[1767424289712,0.01112235,89909.0,89905.0,0.04553239]
[1767424292378,0.06673382,89910.0,89905.0,0.05665524]
[1767424292379,0.01112223,89910.0,89905.0,0.05665524]
[1767424292581,0.01112235,89909.0,89905.0,0.04553239]
[1767424293030,0.01112223,89910.0,89905.0,0.04553239]
[1767424293031,0.01112223,89910.0,89905.0,0.05665524]
[1767424293415,0.01112235,89909.0,89905.0,0.04553239]
[1767424293853,0.01112235,89909.0,89905.0,0.05665524]
[1767424294059,0.01112235,89909.0,89905.0,0.04553239]
[1767424294266,0.01112235,89909.0,89905.0,0.05665524]
[1767424294484,0.01112235,89909.0,89905.0,0.04553239]
[1767424296942,0.01112248,89908.0,89905.0,0.04553239]
[1767424297112,0.000999,89905.0,89903.0,0.04501068]
[1767424297462,0.0111226,89907.0,89903.0,0.04501068]
[1767424298100,0.0111226,89907.0,89903.0,0.05613377]
[1767424299974,0.0111226,89907.0,89903.0,0.04501068]
[1767424301415,0.01112272,89906.0,89903.0,0.04501068]
[1767424301840,0.01112309,89903.0,89898.0,0.04501068]
[1767424302015,0.01212209,89903.0,89894.0,0.01112421]
[1767424302244,0.05561673,89901.0,89900.0,1e-08]
[1767424303046,0.01112507,89887.0,89884.0,1e-08]
[1767424303205,0.05562663,89885.0,89884.0,4.003e-05]
[1767424303652,0.05562663,89885.0,89884.0,3e-08]
[1767424304026,0.06675096,89887.0,89884.0,3e-08]
[1767424304429,0.01108507,89887.0,89884.0,3e-08]
[1767424305599,0.01108507,89887.0,89884.0,0.04501071]
[1767424306733,0.06674907,89889.0,89884.0,0.04501071]
[1767424307341,0.01112495,89888.0,89884.0,0.04501071]
[1767424307775,0.01112507,89887.0,89884.0,0.04501071]
[1767424308036,0.01112495,89888.0,89884.0,0.04501071]
[1767424308435,0.01112507,89887.0,89884.0,0.04501071]
[1767424309185,0.01112495,89888.0,89884.0,0.04501071]
[1767424309886,0.01112507,89887.0,89884.0,0.04501071]
[1767424311345,0.01112495,89888.0,89884.0,0.04501071]
[1767424312216,0.01112483,89889.0,89884.0,0.05613616]
[1767424312397,0.01112495,89888.0,89884.0,0.04501071]
[1767424313778,0.06675046,89887.0,89884.0,3e-08]
[1767424315037,0.05562649,89886.0,89884.0,3e-08]
[1767424323663,0.06675046,89887.0,89884.0,3e-08]
[1767424324369,0.05562644,89886.0,89884.0,3e-08]
[1767424324601,0.05562643,89886.0,89884.0,3e-08]
[1767424328901,0.06675046,89887.0,89884.0,3e-08]
[1767424329307,0.01112507,89887.0,89884.0,3e-08]
[1767424329529,0.06675086,89887.0,89884.0,3e-08]